[Event "Coimbra Queima Fitas Open 2024"]
[Site "Coimbra"]
[Date "2024.04.27"]
[Round "5.16"]
[White "Alegre, Fabio Da Conceicao B"]
[Black "Batista, Sandro Manuel Almeid"]
[Result "1-0"]
[ECO "A10"]
[WhiteElo "1942"]
[BlackElo "1775"]
[Annotator "NA RC"]
[PlyCount "87"]
[EventDate "2024.04.23"]
[EventType "swiss"]
[EventCountry "POR"]
[SourceTitle "playchess.com"]
[Source "ChessBase"]
[SourceQuality "1"]
[TimeControl "5400+30"]

1. c4 b6 2. Nc3 Bb7 3. e4 e5 4. Nf3 Nc6 5. g3 Bc5 6. Na4 Be7 7. Bg2 Nf6 8. d3 Bb4+ 9. Nc3 Qe7 10. O-O O-O 11. Nb5 Qd8 12. a3 Be7 13. b3 d6 14. Bb2 Nd7 15. Nc3 Nc5 16. b4 Ne6 17. Nd5 Nb8 18. Nxe7+ Qxe7 19. d4 Ng5 20. Nxg5 Qxg5 21. f4 exf4 22. Rxf4 f5 23. Qd2 Nd7 24. Raf1 Rae8 25. exf5 Bxg2 26. Qxg2 Qe7 27. R4f2 Nf6 28. h3 Qe3 29. Kh2 Qd3 30. Rc1 Re3 31. Rc3 Qxd4 32. Rf4 Qe5 33. Rc2 Qe7 34. Bc1 Re1 35. Rff2 Re8 36. Bg5 Qe5 37. Bxf6 Qxf6 38. Rce2 R1xe2 39. Rxe2 Rxe2 40. Qxe2 Qxf5 41. Qe8+ Qf8 42. Qe6+ Qf7 43. Qc8+ Qf8 44. Qe6+ 1-0

[Event "Coimbra Queima Fitas Open 2024"]
[Site "Coimbra"]
[Date "2024.04.27"]
[Round "5.17"]
[White "Ribeiro, Rafael Alves Figueir"]
[Black "Ryabukhina, Veronika"]
[Result "0-1"]
[ECO "C41"]
[WhiteElo "1927"]
[BlackElo "1738"]
[Annotator "NA RC"]
[PlyCount "85"]
[EventDate "2024.04.23"]
[EventType "swiss"]
[EventCountry "POR"]
[SourceTitle "playchess.com"]
[Source "ChessBase"]
[SourceQuality "1"]
[TimeControl "5400+30"]

1. e4 {[%emt 0:05:59]} d6 {[%emt 0:00:15]} 2. d4 {[%emt 0:03:14]} Nf6 {[%emt 0:00:14]} 3. Nc3 {[%emt 0:00:33]} e5 {[%emt 0:00:28]} 4. Nf3 {[%emt 0:01:33]} Nbd7 {[%emt 0:00:18]} 5. Bc4 {[%emt 0:01:33]} Be7 {[%emt 0:00:15]} 6. O-O {[%emt 0:00:19]} O-O {[%emt 0:00:06]} 7. Re1 {[%emt 0:05:12]} c6 {[%emt 0:00:47]} 8. a4 {[%emt 0:00:26]} Qc7 {[%emt 0:03:11]} 9. h3 {[%emt 0:01:31]} h6 {[%emt 0:07:46]} 10. Be3 {[%emt 0:05:57]} a5 {[%emt 0:10:24]} 11. Qd2 {[%emt 0:26:17]} Re8 {[%emt 0:14:25]} 12. Bb3 {[%emt 0:17:43]} Bf8 {[%emt 0:02:37]} 13. Nh4 {[%emt 0:01:01]} exd4 {[%emt 0:03:02]} 14. Bxd4 {[%emt 0:01:34]} b6 {[%emt 0:17:56]} 15. Ng6 {[%emt 0:08:23]} Ba6 {[%emt 0:02:42]} 16. Nxf8 {[%emt 0:00:35]} Kxf8 {[%emt 0:00:53]} 17. Rad1 {[%emt 0:09:51]} Rad8 {[%emt 0:00:49]} 18. Qf4 {[%emt 0:05:35]} Ne5 {[%emt 0:01:42]} 19. Qh4 {[%emt 0:01:22]} c5 {[%emt 0:12:09]} 20. Bxe5 {[%emt 0:01:19]} dxe5 {[%emt 0:00:11]} 21. Nd5 {[%emt 0:00:27]} Nxd5 {[%emt 0:00:10]} 22. Bxd5 {[%emt 0:00:07]} c4 23. c3 {[%emt 0:00:51]} Bc8 {[%emt 0:02:16]} 24. Re3 {[%emt 0:00:37]} Bd7 {[%emt 0:02:06]} 25. Rf3 {[%emt 0:00:13]} Be6 {[%emt 0:02:16]} 26. Qg3 {[%emt 0:00:45]} Qc5 {[%emt 0:02:15]} 27. Re1 {[%emt 0:00:31]} Bxd5 {[%emt 0:01:01]} 28. exd5 {[%emt 0:00:05]} Qxd5 {[%emt 0:00:16]} 29. Rfe3 {[%emt 0:00:25]} f6 {[%emt 0:00:42]} 30. f4 {[%emt 0:00:11]} e4 {[%emt 0:03:19]} 31. Qg6 {[%emt 0:00:07]} Qc5 {[%emt 0:00:15]} 32. Kh2 {[%emt 0:00:10]} f5 {[%emt 0:00:51]} 33. Rg3 {[%emt 0:00:45]} Rd7 {[%emt 0:00:50]} 34. Qh7 {[%emt 0:00:02]} Qd5 {[%emt 0:00:33]} 35. Ree3 {[%emt 0:00:16]} Rf7 {[%emt 0:02:07]} 36. Rg6 {[%emt 0:00:23]} Qd2 {[%emt 0:01:19]} 37. Reg3 {[%emt 0:00:11]} Qxf4 {[%emt 0:01:41]} 38. Qh8+ {[%emt 0:01:17]} Ke7 {[%emt 0:00:06]} 39. Re6+ {[%emt 0:00:01]} Kxe6 {[%emt 0:00:34]} 40. Qxe8+ {[%emt 0:00:02]} Re7 {[%emt 0:01:21]} 41. Qc6+ {[%emt 0:00:42]} Qd6 {[%emt 0:01:49]} 42. Qxc4+ {[%emt 0:00:33]} Qd5 {[%emt 0:00:20]} 43. Rg6+ 0-1

[Event "Coimbra Queima Fitas Open 2024"]
[Site "Coimbra"]
[Date "2024.04.27"]
[Round "5.18"]
[White "Ermida, Ricardo Carreira Das"]
[Black "Santos, Tomas Afonso Pires D"]
[Result "1/2-1/2"]
[ECO "B22"]
[WhiteElo "1825"]
[BlackElo "1904"]
[Annotator "NA RC"]
[PlyCount "73"]
[EventDate "2024.04.23"]
[EventType "swiss"]
[EventCountry "POR"]
[SourceTitle "playchess.com"]
[Source "ChessBase"]
[SourceQuality "1"]
[TimeControl "5400+30"]

1. e4 {[%emt 0:04:23]} c5 {[%emt 0:00:07]} 2. c3 {[%emt 0:00:08]} Nf6 {[%emt 0:00:13]} 3. e5 {[%emt 0:00:07]} Nd5 {[%emt 0:00:07]} 4. d4 {[%emt 0:00:11]} cxd4 {[%emt 0:00:29]} 5. cxd4 {[%emt 0:00:51]} d6 {[%emt 0:00:10]} 6. Nf3 {[%emt 0:00:28]} dxe5 {[%emt 0:00:29]} 7. dxe5 {[%emt 0:01:48]} Nc6 {[%emt 0:00:11]} 8. Bc4 {[%emt 0:02:44]} Ndb4 {[%emt 0:01:03]} 9. Qxd8+ {[%emt 0:03:15]} Nxd8 {[%emt 0:00:30]} 10. Na3 {[%emt 0:00:58]} a6 {[%emt 0:08:21]} 11. O-O {[%emt 0:04:36]} b5 {[%emt 0:07:53]} 12. Bb3 {[%emt 0:07:02]} e6 {[%emt 0:07:24]} 13. Nc2 {[%emt 0:04:43]} Bb7 {[%emt 0:07:37]} 14. Nxb4 {[%emt 0:07:51]} Bxb4 {[%emt 0:00:46]} 15. Nd4 {[%emt 0:04:22]} Nc6 {[%emt 0:01:47]} 16. Nxc6 {[%emt 0:00:31]} Bxc6 {[%emt 0:00:08]} 17. Rd1 {[%emt 0:03:27]} O-O {[%emt 0:04:12]} 18. Be3 {[%emt 0:01:26]} Rfc8 {[%emt 0:01:06]} 19. Rac1 {[%emt 0:05:01]} Kf8 {[%emt 0:04:40]} 20. f3 {[%emt 0:04:38]} Ke8 {[%emt 0:01:20]} 21. Kf2 {[%emt 0:00:31]} Bb7 {[%emt 0:02:00]} 22. a3 {[%emt 0:03:42]} Be7 {[%emt 0:00:36]} 23. Rxc8+ {[%emt 0:04:05]} Rxc8 {[%emt 0:00:07]} 24. Rc1 {[%emt 0:01:44]} Rxc1 {[%emt 0:02:48]} 25. Bxc1 {[%emt 0:00:08]} Kd7 {[%emt 0:00:10]} 26. Bc2 {[%emt 0:01:04]} g6 {[%emt 0:02:58]} 27. b4 {[%emt 0:03:13]} f6 {[%emt 0:01:13]} 28. Bb2 {[%emt 0:01:52]} fxe5 {[%emt 0:00:54]} 29. Bxe5 {[%emt 0:00:07]} a5 {[%emt 0:03:09]} 30. Bc3 {[%emt 0:02:30]} Bd5 {[%emt 0:00:37]} 31. g3 {[%emt 0:03:56]} Kc6 {[%emt 0:01:12]} 32. Ke3 {[%emt 0:01:00]} a4 {[%emt 0:01:10]} 33. f4 {[%emt 0:00:53]} Bd8 {[%emt 0:02:26]} 34. Bd4 {[%emt 0:00:24]} Be7 {[%emt 0:00:17]} 35. Bc3 {[%emt 0:00:20]} Bd8 {[%emt 0:01:11]} 36. Bd4 {[%emt 0:00:15]} Be7 {[%emt 0:00:06]} 37. Bc3 {[%emt 0:00:05]} 1/2-1/2

[Event "Coimbra Queima Fitas Open 2024"]
[Site "Coimbra"]
[Date "2024.04.28"]
[Round "6.1"]
[White "Gama, Edivaldo Pereira Da"]
[Black "Sousa, Andre Ventura"]
[Result "1/2-1/2"]
[ECO "A05"]
[WhiteElo "2109"]
[BlackElo "2426"]
[Annotator "TA"]
[PlyCount "45"]
[EventDate "2024.04.23"]
[EventType "swiss"]
[EventCountry "POR"]
[SourceTitle "playchess.com"]
[Source "ChessBase"]
[SourceQuality "1"]
[TimeControl "5400+30"]

{[%evp 12,45,-17,0,-6,-8,0,-3,-10,-4,0,-25,-16,-14,0,-23,1,-36,-38,-31,-25,-30,-29,-50,-35,-33,-25,-34,-29,-44,-16,0,0,-52,0,8]} 1. Nf3 {[%emt 0:01:13]} Nf6 {[%emt 0:02:58]} 2. g3 {[%emt 0:01:06]} e6 {[%emt 0:01:03]} 3. d4 {[%emt 0:00:29]} b5 {[%emt 0:00:24]} 4. a4 {[%emt 0:01:41]} b4 {[%emt 0:00:17]} 5. c4 {[%emt 0:00:26]} Bb7 {[%emt 0:03:01]} 6. Bg2 {[%emt 0:00:45]} c5 {[%emt 0:03:48]} 7. O-O {[%emt 0:01:31]} cxd4 {[%emt 0:00:26]} 8. Nxd4 {[%emt 0:00:21]} Bxg2 {[%emt 0:00:06]} 9. Kxg2 {[%emt 0:00:09]} Be7 {[%emt 0:02:14]} 10. Nd2 {[%emt 0:05:10]} O-O {[%emt 0:05:50]} 11. b3 {[%emt 0:00:42]} Na6 {[%emt 0:05:35]} 12. e4 {[%emt 0:04:07]} Nc5 {[%emt 0:02:59]} 13. Qe2 {[%emt 0:00:22]} Qc7 {[%emt 0:10:17]} 14. Bb2 {[%emt 0:03:56]} Qb7 {[%emt 0:01:25]} 15. f3 {[%emt 0:00:45]} d6 {[%emt 0:00:57]} 16. Rad1 {[%emt 0:01:03]} Rfe8 {[%emt 0:04:47]} 17. Qe3 {[%emt 0:07:03]} Bf8 {[%emt 0:05:00]} 18. Ne2 {[%emt 0:03:40]} Nfd7 {[%emt 0:03:37]} 19. Nf4 {[%emt 0:02:07]} Rad8 {[%emt 0:05:41]} 20. Nd3 {[%emt 0:02:05]} Nxd3 {[%emt 0:06:12]} 21. Qxd3 {[%emt 0:00:05]} Nc5 {[%emt 0:00:04]} 22. Qe3 {[%emt 0:02:44]} (22. Qc2 $11) 22... Nd7 {[%emt 0:11:01]} ({Black should try} 22... e5 $15) 23. Rfe1 {[%emt 0:01:25] Weighted Error Value: White=0.16 (very precise) /Black=0.12 (very precise) .  Mistake:       	White=1     	Black=1      Inaccurate:     	White=1     	Black=1      OK:         	White=5     	Black=2} 1/2-1/2

[Event "Coimbra Queima Fitas Open 2024"]
[Site "Coimbra"]
[Date "2024.04.28"]
[Round "6.2"]
[White "Veiga, Jose Francisco R P N"]
[Black "Ribeiro, Gustavo Martins Sant"]
[Result "1-0"]
[ECO "C42"]
[WhiteElo "2378"]
[BlackElo "2226"]
[Annotator "TA"]
[PlyCount "98"]
[EventDate "2024.04.23"]
[EventType "swiss"]
[EventCountry "POR"]
[SourceTitle "playchess.com"]
[Source "ChessBase"]
[SourceQuality "1"]
[TimeControl "5400+30"]

{[%evp 18,98,27,27,35,23,22,22,28,16,34,12,13,0,0,0,0,0,0,10,20,0,0,0,29,28,27,29,32,28,43,10,52,47,46,48,109,31,19,27,81,69,95,83,79,77,81,58,249,238,225,192,184,184,259,238,266,130,131,123,139,102,327,291,220,120,200,200,471,410,565,565,554,547,565,558,670,507,602,522,662,612,622]} 1. e4 {[%emt 0:12:36]} e5 {[%emt 0:00:05]} 2. Nf3 {[%emt 0:00:25]} Nf6 {[%emt 0:00:04]} 3. Nxe5 {[%emt 0:00:41]} d6 {[%emt 0:00:05]} 4. Nf3 {[%emt 0:00:06]} Nxe4 {[%emt 0:00:04]} 5. d3 {[%emt 0:00:21]} Nf6 {[%emt 0:00:05]} 6. d4 {[%emt 0:00:03]} d5 {[%emt 0:00:03]} 7. Bd3 {[%emt 0:00:13]} c5 {[%emt 0:00:04][%cal Bc7c5,Bc5c4][%mdl 32]} 8. O-O {[%emt 0:02:22]} c4 {[%emt 0:01:04]} 9. Re1+ {[%emt 0:00:40]} Be7 {[%emt 0:00:06]} 10. Bf1 {[%emt 0:00:05]} O-O {[%emt 0:00:13]} 11. b3 {[%emt 0:00:37]} cxb3 {[%emt 0:00:47]} 12. axb3 {[%emt 0:00:05]} Nc6 {[%emt 0:00:37] The position is equal.} 13. c3 {[%emt 0:05:22]} Bf5 {[%emt 0:04:23]} 14. Bg5 {[%emt 0:04:04]} Rc8 {[%emt 0:05:24]} 15. Bxf6 {[%emt 0:01:56]} Bxf6 {[%emt 0:00:10]} 16. Bd3 {[%emt 0:00:10]} Be6 {[%emt 0:09:25]} 17. Nbd2 {[%emt 0:02:52]} Qb6 {[%emt 0:00:49]} 18. b4 {[%emt 0:05:30]} a5 {[%emt 0:10:44]} 19. bxa5 {[%emt 0:22:34]} Nxa5 {[%emt 0:00:57]} 20. Qa4 {[%emt 0:02:12]} Rxc3 {[%emt 0:07:45]} 21. Re3 {[%emt 0:00:20]} (21. Qxa5 Qxa5 (21... Bxd4 22. Nxd4 Qxd4 23. Nf3 $18) 22. Bxh7+ Kxh7 $16) 21... Rxd3 {[%emt 0:01:19]} 22. Rxd3 {[%emt 0:00:34]} Nc4 {[%emt 0:01:53]} 23. Rb3 {[%emt 0:02:45]} Qc7 {[%emt 0:00:14]} 24. Qb4 {[%emt 0:00:51]} g5 {[%emt 0:00:34][%cal Bg7g5,Bg5g4][%mdl 32]} 25. Nxc4 {[%emt 0:12:01]} dxc4 {[%emt 0:00:50]} 26. Qxb7 {[%emt 0:00:10]} Qf4 {[%emt 0:00:54]} (26... Qd8 $14 27. Re3 Bxd4 (27... g4 28. Rxe6 fxe6 29. Ra7 $14) 28. Nxd4 Qxd4) 27. Re3 {[%emt 0:00:54]} (27. g3 $16 Qf5 28. Rb5) 27... g4 $1 $14 {[%emt 0:01:29]} 28. Re4 {[%emt 0:06:28]} Qd6 {[%emt 0:04:29]} (28... Qb8 $11 {remains equal.} 29. Qxb8 Rxb8) 29. Ne5 $1 $16 {[%emt 0:08:19]} (29. Ra6 $6 Qb8 30. Qxb8 Rxb8 $11) 29... Bxe5 {[%emt 0:03:48]} 30. Rxe5 {[%emt 0:03:11] Threatens to win with Rg5+.} Qxd4 {[%emt 0:01:12]} 31. Rae1 $36 {[%emt 0:00:14][%mdl 2048] White has strong initiative.} h6 {[%emt 0:01:14]} 32. Qe7 {[%emt 0:00:29] Black must now prevent Qf6. White is more active.} Qd8 $2 {[%emt 0:00:34] [#]} ({Better is} 32... c3 $14) 33. Rxe6 $1 $18 {[%emt 0:00:34]} fxe6 {[%emt 0:00:22]} 34. Qxe6+ {[%emt 0:00:07][%mdl 4096] Endgame. KQR-KQR} Kh7 {[%emt 0:00:21]} 35. Qxg4 {[%emt 0:05:24]} ({Don't do} 35. Qxc4 Qf6 36. Qe4+ (36. Qxg4 $2 Qxf2+ 37. Kh1 Qxe1#) 36... Qg6 $16) 35... Qf6 {[%emt 0:02:22]} (35... Qd5 $142 36. Rd1 Re8) 36. Qe4+ {[%emt 0:00:23]} (36. Qxc4 $2 {gets mated.} Qxf2+ 37. Kh1 Qxe1+) 36... Kh8 {[%emt 0:00:36]} 37. Qe5 {[%emt 0:01:17]} (37. Qxc4 $2 {leads to mate.} Qxf2+ 38. Kh1 Qxe1+) (37. Qc2 $18 {has better winning chances.}) 37... Qxe5 $16 {[%emt 0:00:42]} 38. Rxe5 {[%emt 0:00:04] Strongly threatening Rc5. KR-KR} Rb8 {[%emt 0:01:54] ( -> ...Rb1+)} 39. g3 {[%emt 0:02:14] aiming for Rc5.} Rb1+ $2 {[%emt 0:01:45]} (39... Rc8 $16) 40. Kg2 $18 {[%emt 0:00:02]} Kg7 {[%emt 0:01:56]} 41. Re2 {[%emt 0:00:48]} ({White should try} 41. Rc5 $18) 41... Rc1 {[%emt 0:00:55] [#]} (41... Kf6 $16) 42. Kf3 $1 {[%emt 0:00:08]} c3 $2 {[%emt 0:01:26]} (42... Kf6 43. Kf4 c3) 43. Ke3 {[%emt 0:00:57]} c2 {[%emt 0:00:22]} 44. h4 {[%emt 0:00:37] White is clearly winning.} Kf6 {[%emt 0:00:49]} 45. Kd3 {[%emt 0:00:21]} Kf5 {[%emt 0:00:21]} 46. Rxc2 {[%emt 0:00:16]} Ra1 {[%emt 0:00:03]} 47. Rc4 {[%emt 0:00:28]} h5 {[%emt 0:00:54]} 48. Rf4+ {[%emt 0:00:38]} Ke5 {[%emt 0:00:05]} 49. Ke2 {[%emt 0:00:13]} Kd5 {Weighted Error Value: White=0.19 (very precise) /Black=0.45.  Loses game:     	---       	Black=2      Mistake:       	White=3     	Black=5      Inaccurate:     	White=1     	Black=4      OK:         	White=12    	Black=6      Best:        	White=5     	Black=4      Strong:       	White=2     	Black=1} 1-0

[Event "Coimbra Queima Fitas Open 2024"]
[Site "Coimbra"]
[Date "2024.04.28"]
[Round "6.3"]
[White "Grimm, Daniel"]
[Black "Martin Duque, Jesus"]
[Result "1/2-1/2"]
[ECO "C54"]
[WhiteElo "2296"]
[BlackElo "2336"]
[Annotator "ChessBase"]
[PlyCount "50"]
[EventDate "2024.04.23"]
[EventType "swiss"]
[EventCountry "POR"]
[SourceTitle "playchess.com"]
[Source "ChessBase"]
[SourceQuality "1"]
[TimeControl "5400+30"]

1. e4 {[%emt 0:00:24]} e5 {[%emt 0:02:31]} 2. Nf3 {[%emt 0:00:32]} Nc6 {[%emt 0:00:03]} 3. Bc4 {[%emt 0:00:43]} Bc5 {[%emt 0:00:03]} 4. c3 {[%emt 0:00:09]} Nf6 {[%emt 0:00:08]} 5. d3 {[%emt 0:00:43]} O-O {[%emt 0:00:52]} 6. Bb3 {[%emt 0:00:23]} a5 {[%emt 0:02:24]} 7. Bg5 {[%emt 0:03:50]} h6 {[%emt 0:00:41]} 8. Bh4 {[%emt 0:00:06]} Be7 {[%emt 0:01:52]} 9. Nbd2 {[%emt 0:01:52]} d6 {[%emt 0:03:46]} 10. h3 {[%emt 0:05:05]} Nd7 {[%emt 0:08:23]} 11. Bxe7 {[%emt 0:01:43]} Nxe7 {[%emt 0:00:25]} 12. d4 {[%emt 0:00:52]} Ng6 {[%emt 0:01:45]} 13. dxe5 {[%emt 0:06:20]} dxe5 {[%emt 0:03:41]} 14. g3 {[%emt 0:00:30]} Nc5 {[%emt 0:00:30]} 15. Bc2 {[%emt 0:00:30]} b6 {[%emt 0:08:39]} 16. Qe2 {[%emt 0:04:11]} Ba6 {[%emt 0:01:31]} 17. Qe3 {[%emt 0:00:16]} Nd3+ {[%emt 0:03:24]} 18. Bxd3 {[%emt 0:00:43]} Qxd3 {[%emt 0:00:04]} 19. Qxd3 {[%emt 0:01:03]} Bxd3 {[%emt 0:00:02]} 20. Nh2 {[%emt 0:07:58]} f5 {[%emt 0:09:07]} 21. exf5 {[%emt 0:08:01]} Rxf5 {[%emt 0:00:30]} 22. f3 {[%emt 0:00:30]} h5 {[%emt 0:11:15]} 23. h4 {[%emt 0:00:34]} e4 {[%emt 0:10:00]} 24. f4 {[%emt 0:05:15]} b5 {[%emt 0:14:27]} 25. Nhf1 {[%emt 0:06:13]} Ne7 {[%emt 0:02:37]} 1/2-1/2

[Event "Coimbra Queima Fitas Open 2024"]
[Site "Coimbra"]
[Date "2024.04.28"]
[Round "6.4"]
[White "Simoes, Miguel Caldeira"]
[Black "Serarols Mabras, Bernat"]
[Result "1-0"]
[ECO "B11"]
[WhiteElo "2084"]
[BlackElo "2361"]
[Annotator "TA"]
[PlyCount "83"]
[EventDate "2024.04.23"]
[EventType "swiss"]
[EventCountry "POR"]
[SourceTitle "playchess.com"]
[Source "ChessBase"]
[SourceQuality "1"]
[TimeControl "5400+30"]

{[%evp 12,83,22,22,19,26,9,10,39,39,43,32,43,35,46,40,45,29,97,106,109,79,89,66,108,123,123,98,126,131,160,106,97,106,112,82,147,142,133,133,139,131,138,127,183,175,204,201,227,198,200,156,157,94,100,55,134,137,129,129,129,116,213,111,231,62,2331,1946,29970,29969,29990,29991,29992,29993]} 1. e4 {[%emt 0:05:30]} c6 {[%emt 0:00:24]} 2. Nc3 {[%emt 0:01:01]} d5 {[%emt 0:00:10]} 3. Nf3 {[%emt 0:00:03]} Bg4 {[%emt 0:01:05]} 4. h3 {[%emt 0:00:07]} Bxf3 {[%emt 0:00:30]} 5. Qxf3 {[%emt 0:00:03]} Nf6 {[%emt 0:00:17]} 6. d3 {[%emt 0:06:49]} e6 {[%emt 0:03:53]} 7. Bd2 {[%emt 0:07:45]} Qb6 {[%emt 0:01:59]} 8. O-O-O {[%emt 0:00:56]} d4 {[%emt 0:08:47]} 9. Ne2 {[%emt 0:01:46]} Bb4 {[%emt 0:00:42] The position is equal.} 10. Bxb4 {[%emt 0:09:04]} Qxb4 {[%emt 0:00:22]} 11. e5 {[%emt 0:01:06]} Nfd7 {[%emt 0:04:24][%cal Oc6c5]} 12. Qg4 {[%emt 0:02:42]} O-O {[%emt 0:00:28][%cal Oc6c5]} 13. Qxd4 {[%emt 0:01:06]} Qa5 {[%emt 0:02:42]} 14. Nc3 {[%emt 0:01:57]} c5 {[%emt 0:12:19]} (14... Nxe5 $11 {keeps the balance.} 15. g4 Ned7) 15. Qa4 $16 {[%emt 0:04:09]} Qc7 {[%emt 0:00:30]} 16. d4 {[%emt 0:03:36]} Nc6 {[%emt 0:14:43]} 17. d5 {[%emt 0:09:17]} Nb6 {[%emt 0:07:44] [#]} 18. Qe4 {[%emt 0:05:55]} exd5 {[%emt 0:00:44]} 19. Nxd5 {[%emt 0:00:08]} Nxd5 {[%emt 0:01:12]} 20. Rxd5 {[%emt 0:02:52]} Nb4 {[%emt 0:01:18] Repels Bd3} 21. Rd1 {[%emt 0:01:38]} (21. Bd3 $142 $1 {[%csl Gd3][%cal Re4h7]} g6 22. Rd6) 21... Nxa2+ {[%emt 0:01:22] Black is weak on the light squares} 22. Kb1 {[%emt 0:00:10]} Nb4 {[%emt 0:00:38]} 23. c3 $40 {[%emt 0:07:44][%mdl 128] White wants a kill.} Rad8 {[%emt 0:09:46]} (23... Qc6 $142 24. Bd3 Nxd3 25. Qxc6 bxc6 26. Rxd3 Rae8) 24. Rxd8 {[%emt 0:01:36]} Qxd8 {[%emt 0:01:04][%cal Rd8d1] [#]} 25. Bc4 {[%emt 0:06:10]} (25. cxb4 $6 Qd1+ 26. Ka2 Qa4+ 27. Kb1 Qd1+ 28. Ka2 Qa4+ 29. Kb1 Qd1+ $11) 25... Nc6 {[%emt 0:00:37]} 26. Bd5 {[%emt 0:00:11]} Qe7 {[%emt 0:04:00]} 27. Re1 {[%emt 0:01:09]} Nd8 {[%emt 0:03:58]} (27... Rd8 $16 28. f4 h6) 28. f4 $18 {[%emt 0:03:00][%cal Bf2f4,Bf4f5][%mdl 32]} Kh8 {[%emt 0:00:42]} 29. f5 {[%emt 0:02:08]} Re8 {[%emt 0:00:56]} 30. Qa4 {[%emt 0:03:01]} a6 {[%emt 0:00:35]} 31. Re4 {[%emt 0:00:11]} b5 {[%emt 0:05:27]} 32. Qd1 {[%emt 0:02:37] White has more active pieces.} (32. Qxa6 $142 Qd7 33. Qd6 Qxf5 34. Qxc5) 32... Qd7 {[%emt 0:02:31]} 33. g4 {[%emt 0:00:44]} Nc6 {[%emt 0:01:12]} (33... g6 $14) 34. e6 $16 {[%emt 0:00:41]} fxe6 {[%emt 0:00:15]} 35. Rxe6 {[%emt 0:01:04]} (35. fxe6 Qd6) 35... Rd8 {[%emt 0:02:32] aiming for ...Ne7.} 36. Qe2 {[%emt 0:00:59]} Na5 {[%emt 0:02:36]} (36... Qxd5 $16 {keeps fighting.} 37. Re8+ Rxe8 38. Qxe8+ Qg8 39. Qxc6 h6) 37. Re5 {[%emt 0:04:48]} (37. Rxa6 Qxd5 38. Rxa5 Qb3 $11) (37. Qf3 $18 {[%cal Of5f6] f6! would now be deadly.} Nc4 (37... Qxd5 $2 38. Qxd5 Rf8 39. Rxa6 $18) 38. Bxc4 bxc4 39. Rxa6) 37... c4 {[%emt 0:01:28]} (37... Nc6 $16 38. Re6 Qxd5 39. Re8+ Rxe8 40. Qxe8+ Qg8 41. Qxc6 h5) 38. g5 $2 {[%emt 0:00:25]} ({White should try} 38. Qe4 $18 {Re7 would kill now.} Nb3 39. Qe3) 38... b4 $2 {[%emt 0:02:10][%mdl 8192] Black cannot hold the game after this.} 39. f6 $18 {[%emt 0:01:20] Intending fxg7+ and mate.} (39. Bxc4 $2 Nxc4 40. f6 Nxe5 41. fxg7+ Kg8 $19 (41... Qxg7 $2 42. cxb4 Nd3 43. Qd2 $19)) 39... gxf6 {[%emt 0:00:10]} 40. gxf6 {[%emt 0:00:04] White mates.} bxc3 {[%emt 0:00:26]} 41. f7 {[%emt 0:00:33]} (41. Bxc4 $2 {perishes.} Nxc4 (41... Qd1+ $2 42. Qxd1 Rxd1+ 43. Kc2 $18) 42. Qxc4 Qd1+ (42... Qxh3 43. f7 $16) 43. Ka2 cxb2 44. Kxb2 Rb8+ (44... Rd2+ $2 45. Kc3 $19) 45. Kc3 Qa1+ 46. Kd3 Qxe5 $19) 41... Rf8 {[%emt 0:02:26]} 42. Rg5 {[%emt 0:00:57] Weighted Error Value: White=0.24 (precise) /Black=0.37.  Loses game:     	---       	Black=1      Missed win:     	White=1     	---        Mistake:       	White=3     	Black=6      Inaccurate:     	White=1     	Black=3      OK:         	White=11    	Black=8      Best:        	White=4     	Black=1} 1-0